bitfinex-derivatives/quotes_BTCF0:USTF0_20250620
["timestamp","ask_amount","ask_price","bid_price","bid_amount"]
[1750457657554,1.69446794,103410.0,103400.0,0.08448939]
[1750457658565,1.69446794,103410.0,103400.0,0.27789379]
[1750457660162,1.69446794,103410.0,103400.0,0.08448939]
[1750457660462,1.69446794,103410.0,103400.0,0.27789379]
[1750457663169,1.1796653,103410.0,103400.0,0.27789379]
[1750457663359,1.69446794,103410.0,103400.0,0.27789379]
[1750457665862,1.43706662,103410.0,103400.0,0.27789379]
[1750457666469,1.43706662,103410.0,103400.0,0.08448939]
[1750457666659,1.69446794,103410.0,103400.0,0.08448939]
[1750457667566,1.69446794,103410.0,103400.0,0.07505396]
[1750457668268,1.78826794,103410.0,103400.0,0.0308]
[1750457670961,1.78826794,103410.0,103400.0,0.0635]
[1750457672970,1.78831722,103410.0,103400.0,0.0635]
[1750457673670,1.78831722,103410.0,103400.0,0.0308]
[1750457674865,1.78831722,103410.0,103400.0,0.0615]
[1750457677373,1.58893192,103410.0,103400.0,0.0615]
[1750457677574,1.78231722,103410.0,103400.0,0.05206438]
[1750457679277,1.78231722,103410.0,103400.0,0.0307]
[1750457687584,1.78231722,103410.0,103400.0,0.02126444]
[1750457687879,0.1934042,103400.0,103390.0,0.4004728]
[1750457688083,0.78538123,103400.0,103390.0,0.4004728]
[1750457689176,0.78638123,103400.0,103390.0,0.4034728]
[1750457689370,0.70925612,103400.0,103390.0,0.3551175]
[1750457689977,0.70925612,103400.0,103390.0,0.3561175]
[1750457690681,0.70925612,103400.0,103390.0,0.3871175]
[1750457691579,1.07005612,103400.0,103390.0,0.3871175]
[1750457694488,1.17660933,103400.0,103390.0,0.0344]
[1750457694681,1.24050933,103400.0,103390.0,0.2278229]
[1750457694882,1.24050933,103400.0,103390.0,0.2282229]
[1750457695689,1.24050933,103400.0,103390.0,0.0348]
[1750457696691,0.72565741,103400.0,103390.0,0.2282229]
[1750457696887,1.24050933,103400.0,103390.0,0.2282229]
[1750457698691,0.72565741,103400.0,103390.0,0.2282229]
[1750457698893,1.24050933,103400.0,103390.0,0.2282229]
[1750457699291,1.31763444,103400.0,103390.0,0.2282229]
[1750457700493,1.34027413,103400.0,103390.0,0.2282229]
[1750457702693,1.31763444,103400.0,103390.0,0.2282229]
[1750457703185,1.31763444,103400.0,103390.0,0.0044]
[1750457703387,0.1934225,103390.0,103380.0,0.0008]
[1750457703594,1.85585169,103390.0,103380.0,0.1942389]
[1750457703795,1.85585169,103390.0,103380.0,0.1934389]
[1750457704092,1.85585169,103390.0,103380.0,0.1938389]
[1750457704782,1.85685169,103390.0,103380.0,0.1938389]
[1750457704982,1.34199977,103390.0,103380.0,0.1938389]
[1750457705191,1.34199977,103390.0,103380.0,0.1948389]
[1750457705594,1.34199977,103390.0,103380.0,0.0014]
[1750457705988,1.34299977,103390.0,103380.0,0.0004]
[1750457706188,1.85785169,103390.0,103380.0,0.0004]
[1750457706388,1.34299977,103390.0,103380.0,0.0004]
[1750457706588,1.85785169,103390.0,103380.0,0.0004]
[1750457706789,0.1934412,103380.0,103370.0,0.58558035]
[1750457706993,1.12688754,103380.0,103370.0,0.43510035]
[1750457707195,1.15688754,103380.0,103370.0,0.38673595]
[1750457708192,1.15688754,103380.0,103370.0,0.29001085]
[1750457708397,1.19028754,103380.0,103370.0,0.29121085]
[1750457708598,1.19028754,103380.0,103370.0,0.19681085]
[1750457708895,1.13249312,103380.0,103370.0,0.19681085]
[1750457709292,1.13249312,103380.0,103370.0,0.19641085]
[1750457709493,1.13249312,103380.0,103370.0,0.19681085]
[1750457710492,1.13249312,103380.0,103370.0,0.00336735]
[1750457711291,1.13249312,103380.0,103370.0,0.19682735]
[1750457712398,1.1902273,103380.0,103370.0,0.19682735]
[1750457712800,1.13249312,103380.0,103370.0,0.19682735]
[1750457716403,1.13249312,103380.0,103370.0,0.25832735]
[1750457718603,1.1705212,103380.0,103370.0,0.51575331]
[1750457718791,1.48565456,103380.0,103370.0,0.51575331]
[1750457718997,1.74308052,103380.0,103370.0,0.51575331]
[1750457719605,1.48565456,103380.0,103370.0,0.51575331]
[1750457719997,1.74308052,103380.0,103370.0,0.25832735]
[1750457724805,1.2282286,103380.0,103370.0,0.25832735]
[1750457725007,1.12780052,103380.0,103370.0,0.25832735]
[1750457725302,1.74272052,103380.0,103370.0,0.25832735]
[1750457730400,1.74278687,103380.0,103370.0,0.25832735]
[1750457730606,1.68501312,103380.0,103370.0,0.25832735]
[1750457730812,1.7427867,103380.0,103370.0,0.25832735]
[1750457731001,1.8062867,103380.0,103370.0,0.25832735]
[1750457732211,1.38771312,103380.0,103370.0,0.25832735]
[1750457732504,1.74851312,103380.0,103370.0,0.25832735]
[1750457738110,1.74851312,103380.0,103370.0,0.19682735]
[1750457738311,1.74851312,103380.0,103370.0,0.19642735]
[1750457738509,1.74851312,103380.0,103370.0,0.19682735]
[1750457738714,1.74851312,103380.0,103370.0,0.00336735]
[1750457739410,1.74851312,103380.0,103370.0,0.19682735]
[1750457740318,1.74851312,103380.0,103370.0,0.00336735]
[1750457740618,1.74851312,103380.0,103370.0,0.19682735]
[1750457742118,1.78031312,103380.0,103370.0,0.19682735]
[1750457742722,1.78031312,103380.0,103370.0,0.00336735]
[1750457742921,1.78031312,103380.0,103370.0,0.19682725]
[1750457744936,1.78031312,103380.0,103370.0,0.00336735]
[1750457745937,1.78031312,103380.0,103370.0,0.19682725]
[1750457746436,1.78031312,103380.0,103370.0,0.00336735]
[1750457747733,0.1934599,103370.0,103360.0,0.00163265]
[1750457747935,1.20954909,103370.0,103360.0,0.00243265]
[1750457748137,1.20954909,103370.0,103330.0,0.26116262]
[1750457748138,0.1935161,103340.0,103330.0,0.26116262]
[1750457748333,1.12693035,103340.0,103330.0,0.0016]
[1750457748536,1.42169398,103340.0,103330.0,0.0016]
[1750457748731,1.42169398,103340.0,103320.0,0.3861175]
[1750457748732,0.1935349,103330.0,103320.0,0.3861175]
[1750457748939,0.86951808,103330.0,103320.0,0.3869175]
[1750457749236,0.86951808,103330.0,103320.0,0.3861175]
[1750457749443,0.86951808,103330.0,103320.0,0.3865175]
[1750457749740,0.45096086,103330.0,103320.0,0.64394346]
[1750457749941,0.47366491,103330.0,103320.0,0.64394346]
[1750457750334,0.47366491,103330.0,103320.0,0.3865175]
[1750457750534,0.57703895,103330.0,103320.0,0.3381296]
[1750457750737,0.83446491,103330.0,103320.0,0.3381296]
[1750457750936,0.97469831,103330.0,103320.0,0.3381296]
[1750457751132,0.35647235,103330.0,103320.0,0.3381296]
[1750457751331,0.61389831,103330.0,103320.0,0.3377296]
[1750457751532,0.61389831,103330.0,103320.0,0.3381296]
[1750457751737,0.97469831,103330.0,103320.0,0.3381296]
[1750457752531,0.98634014,103330.0,103320.0,0.3381296]
[1750457753047,0.62554014,103330.0,103320.0,0.3381296]
[1750457753533,0.98634014,103330.0,103320.0,0.3381296]
[1750457753734,0.09973745,103330.0,103320.0,0.59555556]
[1750457753938,0.55069821,103330.0,103320.0,0.59555556]
[1750457754741,0.35716341,103330.0,103320.0,0.95635556]
[1750457754941,0.09973745,103330.0,103320.0,0.95663259]
[1750457755140,0.31119764,103350.0,103340.0,0.1935161]
[1750457755334,0.56890063,103350.0,103340.0,0.1935161]
[1750457755538,0.56890063,103350.0,103340.0,0.2874161]
[1750457755740,0.92970063,103350.0,103340.0,0.2874161]
[1750457755940,0.56890063,103350.0,103340.0,0.2874161]
[1750457756447,0.96090063,103350.0,103340.0,0.2874161]
[1750457757147,0.54234341,103350.0,103340.0,0.2874161]
[1750457757941,0.90214341,103350.0,103340.0,0.2894161]
[1750457758452,0.74694109,103350.0,103340.0,0.2894161]
[1750457758745,0.76511809,103350.0,103340.0,0.2894161]
[1750457758953,0.35594109,103350.0,103340.0,0.2894161]
[1750457759146,1.69275241,103360.0,103350.0,0.1934974]
[1750457759338,0.49511768,103360.0,103350.0,0.2550974]
[1750457759537,0.07656046,103360.0,103350.0,0.87360039]
[1750457759747,0.61202192,103370.0,103360.0,0.1934787]
[1750457759937,0.5542647,103370.0,103360.0,0.2859787]
[1750457760344,0.45116769,103370.0,103360.0,0.2859787]
[1750457760952,0.4626912,103370.0,103360.0,0.2859787]
[1750457761845,0.4636912,103370.0,103360.0,0.2859787]
[1750457762546,0.8244912,103370.0,103360.0,0.2859787]
[1750457762845,0.8570912,103370.0,103360.0,0.2859787]
[1750457763249,0.8880912,103370.0,103360.0,0.2859787]
[1750457763751,0.96627725,103370.0,103360.0,0.2859787]
[1750457763952,0.96627725,103370.0,103360.0,0.2869787]
[1750457764147,0.96627725,103370.0,103360.0,0.1944787]
[1750457764350,0.99887725,103370.0,103360.0,0.1944787]
[1750457766758,0.96627725,103370.0,103360.0,0.2584787]
[1750457769853,1.02384683,103370.0,103360.0,0.1944787]
[1750457770048,1.13511915,103370.0,103360.0,0.1964787]
[1750457770254,1.13511915,103370.0,103360.0,0.1968787]
[1750457770654,1.13511915,103370.0,103360.0,0.0034]
[1750457771249,1.13511915,103370.0,103360.0,0.003]
[1750457771445,1.13511915,103370.0,103360.0,0.0034]
[1750457771652,1.13711915,103370.0,103360.0,0.0014]
[1750457772057,1.22886957,103370.0,103360.0,0.0014]
[1750457772252,1.22886957,103370.0,103360.0,0.001]
[1750457772453,1.56697726,103370.0,103360.0,0.0014]
[1750457772758,1.56697726,103370.0,103360.0,0.001]
[1750457773555,0.80565938,103350.0,103340.0,0.0008]
[1750457773861,0.1935161,103340.0,103330.0,0.4322673]
[1750457774051,0.81201909,103340.0,103330.0,0.4322673]
[1750457775455,0.81301909,103340.0,103330.0,0.4382673]
[1750457776053,0.81301909,103340.0,103330.0,0.4422673]
[1750457776352,0.81301909,103340.0,103330.0,0.4402673]
[1750457776560,0.5553161,103340.0,103330.0,0.4402673]
[1750457776751,0.81301909,103340.0,103330.0,0.4372673]
[1750457778262,0.81301909,103340.0,103330.0,0.3888839]
[1750457778462,0.81301909,103340.0,103330.0,0.3578839]
[1750457778661,0.90801909,103340.0,103330.0,0.3538839]
[1750457778855,0.90901909,103340.0,103330.0,0.195519]
[1750457779564,0.90901909,103340.0,103330.0,0.195919]
[1750457782565,0.96663254,103340.0,103330.0,0.195919]
[1750457783757,0.90901909,103340.0,103330.0,0.195919]
[1750457783959,0.54821909,103340.0,103330.0,0.257319]
[1750457784360,0.1945161,103340.0,103330.0,0.257319]
[1750457784556,0.1945161,103340.0,103330.0,0.87582199]
[1750457784758,0.1945161,103340.0,103330.0,0.51502199]
[1750457785072,0.1945161,103340.0,103330.0,0.257319]
[1750457785472,0.45221909,103340.0,103330.0,0.257319]
[1750457786759,0.001,103340.0,103330.0,0.87582199]
[1750457787567,0.001,103340.0,103330.0,1.63630199]
[1750457789676,0.001,103340.0,103330.0,1.82984599]
[1750457789879,0.001,103340.0,103330.0,2.07984599]
[1750457790273,0.001,103340.0,103330.0,1.82984599]
[1750457791377,0.25109215,103360.0,103350.0,0.1934974]
[1750457791676,1.1054084,103370.0,103360.0,0.1934787]
[1750457791873,1.1054084,103370.0,103360.0,0.2866787]
[1750457792078,0.84770541,103370.0,103360.0,0.2866787]
[1750457792272,0.34179931,103370.0,103360.0,0.6474787]
[1750457792473,0.5995023,103370.0,103360.0,0.6474787]
[1750457792670,0.5995023,103370.0,103360.0,0.2866787]
[1750457792976,0.6005023,103370.0,103360.0,0.6484787]
[1750457793164,0.14932301,103370.0,103360.0,0.90618169]
[1750457793369,0.09170956,103370.0,103360.0,0.90618169]
[1750457794179,0.08018605,103370.0,103360.0,0.90618169]
[1750457795367,0.08018605,103370.0,103360.0,0.90718169]
[1750457795775,0.001,103370.0,103360.0,1.10066969]
[1750457796878,0.001,103370.0,103360.0,1.11834381]
[1750457798182,0.02049721,103390.0,103380.0,0.1934413]
[1750457798377,1.09238276,103400.0,103390.0,0.1934225]
[1750457798677,0.73158276,103400.0,103390.0,0.2549225]
[1750457798881,0.73158276,103400.0,103390.0,0.2881225]
[1750457799578,1.09338276,103400.0,103390.0,0.2891225]
[1750457800181,0.85587401,103400.0,103390.0,0.2891225]
[1750457800481,1.113577,103400.0,103390.0,0.2891225]
[1750457800683,1.114577,103400.0,103390.0,0.2891225]
[1750457801182,0.85687401,103400.0,103390.0,0.2891225]
[1750457801676,1.05696355,103400.0,103390.0,0.2891225]
[1750457802081,1.12036355,103400.0,103390.0,0.1944225]
[1750457802683,1.12136355,103400.0,103390.0,0.1944225]
[1750457802882,1.14388216,103400.0,103390.0,0.1944225]
[1750457805680,0.78308216,103400.0,103390.0,0.1944225]
[1750457806276,0.52537917,103400.0,103390.0,0.1944225]
[1750457806483,1.14388216,103400.0,103390.0,0.1944225]
[1750457807689,0.67771697,103400.0,103390.0,0.45212549]
[1750457807892,0.48430037,103400.0,103390.0,0.51472549]
[1750457808489,0.67770417,103400.0,103390.0,0.51472549]
[1750457808696,0.12350037,103400.0,103390.0,0.87552549]
[1750457808882,0.12350037,103400.0,103390.0,0.6178225]
[1750457809194,0.12350037,103400.0,103390.0,0.87552549]
[1750457809888,0.10330613,103400.0,103390.0,0.87552549]
[1750457811188,0.02651861,103400.0,103390.0,1.06895749]
[1750457815105,0.02651861,103400.0,103390.0,0.87552549]
[1750457818094,1e-08,103400.0,103390.0,1.31895749]
[1750457818997,0.80455295,103430.0,103420.0,0.1933664]
[1750457819195,1.06225594,103430.0,103420.0,0.20152403]
[1750457819700,1.06225594,103430.0,103420.0,0.20192403]
[1750457820395,1.06325594,103430.0,103420.0,0.00955763]
[1750457820597,0.145034,103420.0,103400.0,0.0491498]
[1750457820793,1.19069255,103410.0,103400.0,0.2900918]
[1750457820995,1.19069255,103410.0,103400.0,0.2904918]
[1750457820996,1.22229255,103410.0,103400.0,0.2904918]
[1750457821195,1.06759204,103410.0,103400.0,0.2900918]
[1750457821399,1.06759204,103410.0,103400.0,0.2904918]
[1750457822808,1.06859204,103410.0,103400.0,0.2914918]
[1750457823009,1.01099057,103410.0,103400.0,0.2914918]
[1750457823898,1.01099057,103410.0,103400.0,0.2431414]
[1750457826996,1.62127057,103410.0,103400.0,0.2431414]
[1750457827804,1.98207057,103410.0,103400.0,0.2431414]
[1750457828201,2.23977356,103410.0,103400.0,0.0014]
[1750457828410,0.1934225,103390.0,103380.0,0.3393074]
[1750457828705,1.47979787,103390.0,103380.0,0.0008]
[1750457828906,1.98162421,103390.0,103380.0,0.0008]
[1750457829109,2.05844214,103390.0,103380.0,0.0008]
[1750457829301,0.1934412,103380.0,103370.0,0.23317127]
[1750457829506,0.93190097,103380.0,103370.0,0.23317127]
[1750457829706,0.87424419,103380.0,103370.0,0.23317127]
[1750457830009,0.87424419,103380.0,103370.0,0.23357127]
[1750457830304,0.93187254,103380.0,103370.0,0.23357127]
[1750457830703,0.93287254,103380.0,103370.0,0.23657127]
[1750457831605,0.93287254,103380.0,103370.0,0.23857127]
[1750457832398,0.93287254,103380.0,103370.0,0.23757127]
[1750457832602,0.31436955,103380.0,103370.0,0.85607426]
[1750457832798,0.25206955,103380.0,103370.0,0.91877426]
[1750457832999,0.50977254,103380.0,103370.0,0.30027127]
[1750457833899,0.57317254,103380.0,103370.0,0.30027127]
[1750457834417,0.93397254,103380.0,103370.0,0.30027127]
[1750457834801,0.57317254,103380.0,103370.0,0.30027127]
[1750457838508,0.37973134,103380.0,103370.0,0.30027127]
[1750457839016,0.12202835,103380.0,103370.0,0.30027127]
[1750457839312,0.001,103380.0,103370.0,0.91877426]
[1750457840014,0.001,103380.0,103370.0,0.66107127]
[1750457840213,0.001,103380.0,103370.0,0.91877426]
[1750457840415,1.07064718,103380.0,103370.0,0.1978469]
[1750457840599,1.32207935,103380.0,103370.0,0.1978469]
[1750457840804,1.41675337,103380.0,103370.0,0.1974469]
[1750457841004,1.67445636,103380.0,103370.0,0.1978469]
[1750457842606,1.93215935,103380.0,103370.0,0.1978469]
[1750457842807,1.67445636,103380.0,103370.0,0.1974469]
[1750457843006,1.93215935,103380.0,103370.0,0.0044]
[1750457843704,2.16699363,103380.0,103370.0,0.004]
[1750457843904,2.36046563,103380.0,103370.0,0.004]
[1750457844109,2.36046563,103380.0,103370.0,0.00017758]
[1750457844607,2.36046563,103380.0,103370.0,0.00057758]
[1750457844806,2.36046563,103380.0,103370.0,0.00017758]
[1750457845013,2.36046563,103380.0,103370.0,0.00057758]
[1750457846624,0.1934786,103360.0,103350.0,0.3394023]
[1750457846813,0.82759555,103360.0,103350.0,0.3386023]
[1750457847116,1.02772228,103360.0,103350.0,0.3386023]
[1750457847411,1.02772228,103360.0,103350.0,0.3390023]
[1750457847916,1.02772228,103360.0,103350.0,0.3430023]
[1750457848317,1.02772228,103360.0,103350.0,0.1978822]
[1750457848712,1.08522232,103360.0,103350.0,0.1974822]
[1750457849011,1.08522232,103360.0,103350.0,0.1978822]
[1750457849213,1.08622232,103360.0,103350.0,0.2038822]
[1750457849416,1.69614232,103360.0,103350.0,0.2038822]
[1750457849615,1.69514232,103360.0,103350.0,0.1978822]
[1750457849818,1.69814232,103360.0,103350.0,0.1984822]
[1750457850120,1.77547941,103360.0,103350.0,0.1988822]
[1750457850517,1.77647941,103360.0,103350.0,0.1948822]
[1750457851105,1.81337433,103360.0,103350.0,0.1948822]
[1750457852218,1.81337433,103360.0,103350.0,0.0014]
[1750457852718,1.81337433,103360.0,103350.0,0.1948974]
[1750457853109,1.81337433,103360.0,103350.0,0.0014]
[1750457854817,1.81337433,103360.0,103350.0,0.1948974]
[1750457855417,1.81337433,103360.0,103350.0,0.0014]
[1750457855615,2.07107732,103360.0,103350.0,0.0014]
[1750457855821,2.74419336,103360.0,103350.0,0.001]
[1750457856022,2.48649037,103360.0,103350.0,0.0014]
[1750457856522,2.40967244,103360.0,103350.0,0.0014]
[1750457857018,2.66737543,103360.0,103350.0,0.0014]
[1750457857520,2.74419336,103360.0,103350.0,0.0014]
[1750457858029,2.48649037,103360.0,103350.0,0.0014]
[1750457858324,2.74419336,103360.0,103350.0,0.0014]
[1750457859024,2.93769736,103360.0,103350.0,0.0014]
[1750457860216,0.1934974,103350.0,103340.0,0.00096763]
[1750457860420,1.13200338,103350.0,103340.0,0.00096763]
[1750457860622,1.29161852,103350.0,103340.0,0.00096763]
[1750457861628,1.23407295,103350.0,103340.0,0.00196763]
[1750457862129,1.23507295,103350.0,103340.0,0.00296763]
[1750457863030,1.31189088,103350.0,103340.0,0.00296763]
[1750457864224,1.23507295,103350.0,103340.0,0.00296763]
[1750457866135,1.99231295,103350.0,103340.0,0.00296763]
[1750457867024,2.06913088,103350.0,103340.0,0.00296763]
[1750457867534,1.99231295,103350.0,103340.0,0.00296763]
[1750457867733,0.05851569,103350.0,103340.0,0.45418672]
[1750457868034,0.25201309,103350.0,103340.0,0.25698373]
[1750457868231,0.45220039,103350.0,103340.0,0.25698373]
[1750457868437,0.45220039,103350.0,103340.0,0.61778373]
[1750457869027,0.1944974,103350.0,103340.0,0.61778373]
[1750457869336,0.001,103350.0,103340.0,0.87548672]
[1750457869841,0.09295105,103360.0,103350.0,0.1934974]
[1750457870135,0.28642965,103360.0,103350.0,0.78172227]
[1750457870639,0.28642965,103360.0,103350.0,1.39132227]
[1750457871727,0.12015209,103360.0,103350.0,1.39132227]
[1750457872233,0.38085508,103360.0,103350.0,1.39188227]
[1750457872737,0.37885508,103360.0,103350.0,1.39088227]
[1750457872939,0.37885508,103360.0,103350.0,1.42758227]
[1750457873528,0.12115209,103360.0,103350.0,1.42758227]
[1750457874542,0.12115209,103360.0,103350.0,0.67082227]
[1750457874733,0.12115209,103360.0,103350.0,1.42742227]
[1750457875238,0.37885508,103360.0,103350.0,1.42742227]
[1750457875441,0.45713948,103360.0,103350.0,1.42742227]
[1750457876340,0.45713948,103360.0,103350.0,0.67082227]
[1750457876533,0.45713948,103360.0,103350.0,0.91946227]
[1750457876728,0.81793948,103360.0,103350.0,0.31002227]
[1750457876928,0.87545517,103360.0,103350.0,0.31002227]
[1750457878131,0.87545517,103360.0,103350.0,0.31042227]
[1750457878434,0.87545517,103360.0,103350.0,0.31002227]
[1750457878638,0.87545517,103360.0,103350.0,0.31042227]
[1750457880438,0.87545517,103360.0,103350.0,0.11692487]
[1750457880629,0.98746302,103360.0,103350.0,0.006]
[1750457880828,1.08226302,103360.0,103350.0,0.1994973]
[1750457881034,1.08226302,103360.0,103350.0,0.1998973]
[1750457881933,1.08226302,103360.0,103350.0,0.0064]
[1750457882137,1.28245032,103360.0,103350.0,0.006]
[1750457882337,1.02474733,103360.0,103350.0,0.006]
[1750457882539,1.63402733,103360.0,103350.0,0.0064]
[1750457883245,1.63402733,103360.0,103350.0,0.0044]
[1750457883432,1.63402733,103360.0,103350.0,0.0064]
[1750457884143,1.63602733,103360.0,103350.0,0.0014]
[1750457887950,1.63602733,103360.0,103350.0,0.1948974]
[1750457889149,1.63602733,103360.0,103350.0,0.0014]
[1750457892046,1.89373032,103360.0,103350.0,0.0014]
[1750457892250,1.97054825,103360.0,103350.0,0.001]
[1750457892546,1.97054825,103360.0,103350.0,0.0014]
[1750457901050,2.1154147,103360.0,103350.0,0.0014]
[1750457901753,2.03859677,103360.0,103350.0,0.001]
[1750457901958,2.03859677,103360.0,103350.0,0.0014]
[1750457902358,2.03859677,103360.0,103340.0,0.00096763]
[1750457902359,0.1934974,103350.0,103340.0,0.00096763]
[1750457902658,1.35464574,103350.0,103340.0,0.00096763]
[1750457902860,1.60527326,103350.0,103340.0,0.00096763]
[1750457903556,1.60527326,103350.0,103340.0,0.00196763]
[1750457903759,1.60627326,103350.0,103340.0,0.00396763]
[1750457906655,1.60627326,103350.0,103330.0,0.0962]
[1750457906656,0.193516,103340.0,103330.0,0.0962]
[1750457906863,1.592032,103340.0,103330.0,0.0008]
[1750457907053,1.70389666,103340.0,103330.0,0.0008]
[1750457907355,0.1935348,103330.0,103320.0,0.0934]
[1750457907660,0.81203779,103330.0,103320.0,0.0934]
[1750457907869,0.92390245,103330.0,103320.0,0.0934]
[1750457909450,0.92690245,103330.0,103320.0,0.0944]
[1750457909655,0.92690245,103330.0,103320.0,0.2879535]
[1750457910052,0.92890245,103330.0,103320.0,0.2879535]
[1750457911260,0.92890245,103330.0,103320.0,0.0944]
[1750457911462,0.92890245,103330.0,103320.0,0.2879536]
[1750457912657,0.67119946,103330.0,103320.0,0.2879536]
[1750457912867,0.5593348,103330.0,103320.0,0.2879536]
[1750457913160,0.61694466,103330.0,103320.0,0.54565659]
[1750457913360,0.61694466,103330.0,103320.0,0.2879536]
[1750457914764,0.87464765,103330.0,103320.0,0.2879536]
[1750457915563,0.51384765,103330.0,103320.0,0.2879536]
[1750457917867,0.25614466,103330.0,103320.0,0.6487536]
[1750457918654,0.25614466,103330.0,103320.0,0.90645659]
[1750457918854,0.1985348,103330.0,103320.0,0.90645659]
[1750457919260,0.005,103330.0,103320.0,0.90645659]
[1750457919465,0.1985348,103330.0,103320.0,0.90645659]
[1750457919657,0.1885348,103330.0,103320.0,0.6487536]
[1750457920175,0.1885348,103330.0,103320.0,0.7956336]
[1750457921171,0.50384765,103330.0,103320.0,0.4348336]
[1750457924273,0.86464765,103330.0,103320.0,0.4348336]
[1750457924671,0.50384765,103330.0,103320.0,0.4348336]
[1750457925564,0.86464765,103330.0,103320.0,0.4348336]
[1750457926570,0.86464765,103330.0,103320.0,0.4352336]
[1750457931975,0.50384765,103330.0,103320.0,0.4352336]
[1750457933378,0.86464765,103330.0,103320.0,0.4352336]
[1750457936278,0.92894765,103330.0,103320.0,0.4352336]
[1750457936480,0.56814765,103330.0,103320.0,0.4352336]
[1750457936679,0.92894765,103330.0,103320.0,0.4352336]
[1750457936880,0.92894765,103330.0,103320.0,0.2883536]
[1750457937279,0.92894765,103330.0,103320.0,0.2566536]
[1750457937672,0.92894765,103330.0,103320.0,0.2562536]
[1750457937873,0.92894765,103330.0,103320.0,0.1949536]
[1750457938881,0.67124466,103330.0,103320.0,0.1949536]
[1750457939080,0.92894765,103330.0,103320.0,0.1949536]
[1750457939379,0.92894765,103330.0,103320.0,0.2596536]
[1750457940486,0.92894765,103330.0,103320.0,0.2267536]
[1750457940779,0.92894765,103330.0,103320.0,0.1949536]
[1750457942784,0.97925495,103330.0,103320.0,0.1949536]
[1750457942982,1.58729495,103330.0,103320.0,0.1949536]
[1750457943379,1.58729495,103330.0,103320.0,0.1945536]
[1750457943580,1.58729495,103330.0,103320.0,0.0014]
[1750457943779,1.58729495,103330.0,103320.0,0.001]
[1750457943979,1.58729495,103330.0,103320.0,0.0014]
[1750457944883,1.66412796,103330.0,103320.0,0.0014]
[1750457945185,1.58729495,103330.0,103320.0,0.1949536]
[1750457946185,1.58729495,103330.0,103320.0,0.0014]
[1750457946687,1.58729495,103330.0,103320.0,0.001]
[1750457946884,1.58729495,103330.0,103320.0,0.0014]
[1750457948286,1.66412796,103330.0,103320.0,0.0014]
[1750457949677,2.2132397,103330.0,103320.0,0.001]
[1750457949882,2.2132397,103330.0,103320.0,0.0014]
[1750457950981,0.1935535,103320.0,103310.0,0.00096791]
[1750457951182,1.16115948,103320.0,103310.0,0.00096791]
[1750457951493,1.27144889,103320.0,103310.0,0.00096791]
[1750457952083,1.27244889,103320.0,103310.0,0.00396791]
[1750457953587,1.27144889,103320.0,103310.0,0.00096791]
[1750457953786,1.27244889,103320.0,103310.0,0.00296791]
[1750457954491,1.27244889,103320.0,103310.0,0.00196791]
[1750457954700,1.27344889,103320.0,103310.0,0.00196791]
[1750457957090,1.27344889,103320.0,103310.0,0.00236791]
[1750457957492,1.35036677,103320.0,103310.0,0.00236791]
[1750457959094,0.1935723,103310.0,103300.0,0.0008]
[1750457959299,0.193591,103300.0,103290.0,0.3855967]
[1750457959597,0.8696901,103300.0,103290.0,0.3863967]
[1750457959990,0.94789592,103300.0,103290.0,0.3863967]
[1750457960185,0.89029981,103300.0,103290.0,0.3863967]
[1750457960990,0.89029981,103300.0,103290.0,0.3893967]
[1750457961192,0.92183326,103300.0,103290.0,0.3893967]
[1750457961694,0.92183326,103300.0,103290.0,0.3449955]
[1750457961899,0.98042937,103300.0,103290.0,0.3449955]
[1750457962097,1.04422937,103300.0,103290.0,0.3449955]
[1750457962293,1.04322937,103300.0,103290.0,0.3421955]
[1750457962493,1.04422937,103300.0,103290.0,0.3425955]
[1750457962687,1.04422937,103300.0,103290.0,0.0054]
[1750457962892,1.18686456,103300.0,103290.0,0.0054]
[1750457963087,1.18686456,103300.0,103290.0,0.0024]
[1750457963288,1.18686456,103300.0,103290.0,0.004]
[1750457963490,0.92916157,103300.0,103290.0,0.0044]
[1750457963693,1.18686456,103300.0,103290.0,0.004]
[1750457964197,1.18686456,103300.0,103290.0,0.0044]
[1750457964393,1.12926845,103300.0,103290.0,0.0044]
[1750457964793,1.12926845,103300.0,103290.0,0.004]
[1750457964993,1.12926845,103300.0,103290.0,0.0044]
[1750457965503,1.38697144,103300.0,103290.0,0.0044]
[1750457965999,1.12926845,103300.0,103290.0,0.0044]
[1750457971500,1.38697144,103300.0,103290.0,0.0044]
[1750457973907,0.1936285,103280.0,103270.0,0.0008]
[1750457974218,0.1936472,103270.0,103260.0,0.0635]
[1750457974511,0.193666,103260.0,103250.0,0.19545318]
[1750457974703,1.67723198,103260.0,103250.0,0.25815318]
[1750457974894,1.67723198,103260.0,103250.0,0.25855328]
[1750457975097,1.83590853,103260.0,103250.0,0.06486848]
[1750457975293,1.83590853,103260.0,103250.0,0.06446848]
[1750457975498,1.83590853,103260.0,103250.0,0.00136848]
[1750457975694,1.93190853,103260.0,103250.0,0.00096848]
[1750457975902,1.93190853,103260.0,103250.0,0.00136848]
[1750457976405,2.09595642,103260.0,103250.0,0.00136848]
[1750457976707,2.09695642,103260.0,103250.0,0.00496848]
[1750457976902,2.09795642,103260.0,103250.0,0.00536848]
[1750457977101,1.4139116,103260.0,103250.0,0.00536848]
[1750457977305,2.1663916,103260.0,103250.0,0.00136848]
[1750457977502,2.1673916,103260.0,103250.0,0.00236848]
[1750457977803,2.1683916,103260.0,103250.0,0.00236848]
[1750457978604,0.1937035,103240.0,103230.0,0.0319]
[1750457978805,1.83777943,103240.0,103230.0,0.096]
[1750457979005,1.94309725,103240.0,103230.0,0.0004]
[1750457979202,0.1937223,103230.0,103220.0,0.09696876]
[1750457979404,0.1937786,103200.0,103190.0,0.24480764]
[1750457979609,0.6030038,103210.0,103200.0,0.2548786]
[1750457979902,0.45144409,103220.0,103210.0,0.1937598]
[1750457980097,0.1937411,103220.0,103210.0,0.3521173]
[1750457980402,0.5545411,103220.0,103210.0,0.60982029]
[1750457980601,0.5545411,103220.0,103210.0,0.0615]
[1750457980807,1.52199934,103220.0,103210.0,0.0615]
[1750457981107,1.57932409,103220.0,103210.0,0.0615]
[1750457981312,1.72407863,103220.0,103210.0,0.0615]
[1750457981505,1.72407863,103220.0,103210.0,0.0308]
[1750457981707,1.72407863,103220.0,103200.0,0.0621]
[1750457981708,0.1937598,103210.0,103200.0,0.0621]
[1750457981905,0.81226279,103210.0,103200.0,0.0621]
[1750457982211,0.9842035,103210.0,103200.0,0.031]
[1750457982406,1.5916035,103210.0,103200.0,0.03]
[1750457982801,1.66855147,103210.0,103200.0,0.03]
[1750457983001,0.1937786,103200.0,103190.0,0.06326904]
[1750457983313,1.17172683,103200.0,103190.0,0.09586904]
[1750457983906,1.17172683,103200.0,103190.0,0.00176904]
[1750457984120,1.29525158,103200.0,103190.0,0.00176904]
[1750457984306,1.29625158,103200.0,103190.0,0.00396904]
[1750457984510,1.84632683,103200.0,103190.0,0.00436904]